Workbook

Sheet Kalkulation
A1: ="Kostenrechner Gas"&" "&Tarife!E1&" 2. HJ" -> Kostenrechner Gas 2024 2. HJ | F1: Formelbasis - nicht verändern!
A2: gültig ab 1. Juli 2024
A4: Muster AG, Musterstrasse, 8620 Wetzikon
A5: Datum | B5: =TODAY() -> 2024-04-04
A8: Kenngrössen
A10: Bezugsperiode | F10: =IF(G10='Drop Down'!A4,1,IF(G10='Drop Down'!A5,3,IF(G10='Drop Down'!A6,12))) -> 12 | G10: Jahr
A12: ="Verbrauchsmenge "&G10 -> Verbrauchsmenge Jahr | G12: 35,000 | I12: kWh
A13: Anzahl Zähler/Messpunkte | G13: 1
A15: Tarifart | G15: G-Standard
A16: Biogasanteil | G16: Biogas 35 % - Standardmix
A19: Gasversorgung | G19: ="Tarif"&" "&G15&" " -> Tarif G-Standard | I19: ="Kostenkalkulation"&" pro " &G10 -> Kostenkalkulation pro Jahr
A23: Erdgas | D23: =G12 -> 35,000 | E23: kWh | F23: =CONCATENATE(G15,A23) -> G-StandardErdgas | G23: =VLOOKUP(F23,Tarife!$C:$E,3,0) -> 6.50 | H23: Rp./kWh | I23: =$G$12*G23/100 -> 2,275.00 | J23: CHF
A24: Erdgas Sonderausschüttung1 | F24: =CONCATENATE(A24) -> Erdgas Sonderausschüttung1 | G24: =VLOOKUP(F24,Tarife!$C:$E,3,0) -> -2.81 | H24: Rp./kWh | I24: =$G$12*G24/100 -> -983.50 | J24: CHF
A25: =G16 -> Biogas 35 % - Standardmix | F25: =CONCATENATE(A25) -> Biogas 35 % - Standardmix | G25: =VLOOKUP(F25,Tarife!$C:$E,3,0) -> 1.40 | H25: Rp./kWh | I25: =$G$12*G25/100 -> 490.00 | J25: CHF
A26: Grundpreis | F26: =CONCATENATE(G15,A26) -> G-StandardGrundpreis | G26: =VLOOKUP(F26,Tarife!$C:$E,3,0) -> 12.00 | H26: CHF/Zähler/Mt | I26: =G26*$G$13*$F$10 -> 144.00 | J26: CHF
A28: Abgaben
A29: CO2-Abgabe | F29: =CONCATENATE(A29," ",G16) -> CO2-Abgabe Biogas 35 % - Standardmix | G29: =VLOOKUP(F29,Tarife!$C:$E,3,0) -> 2.156 | H29: Rp./kWh | I29: =G12*G29/100 -> 754.60 | J29: CHF
A30: Abgabe an das Gemeinwesen | F30: =CONCATENATE(A30) -> Abgabe an das Gemeinwesen | G30: =VLOOKUP(F30,Tarife!$C:$E,3,0) -> 2.90 | H30: CHF/Zähler/Mt | I30: =G30*$G$13*$F$10 -> 34.80 | J30: CHF
A32: Total Gaskosten exkl. MWST | I32: =SUM(I22:I31) -> 2,714.90 | J32: CHF
A35: Dieser Kostenrechner dient als preisliche Indikation und ist nicht verbindlich.
A37: Preise für Erdgas, Biogas und CO2-Abgabe sind stets auf die gesamte Menge bezogen, gemäss den publizierten Ansätzen.
A39: Alle Preise verstehen sich exklusive MWST.
A40: Produkt- und Preisänderungen bleiben vorbehalten.
A41: Weitere Informationen, Leistungen und Preisbedingungen sind dem entsprechend gültigen Tarifblatt zu entnehmen.
A43: 1 Sonderausschüttung nicht mehr gebrauchter Reserven aus der Energiebeschaffung.

Sheet Tarife (hidden)
A1: Tarife zu Kostenrechner Gas | C1: Formelbasis - nicht verändern! | E1: 2024
A3: Tarife Standard-Gasmix.
A4: Alle Preise exklusive MWST.
A5: Produkt- und Preisänderungen bleiben vorbehalten.
A7: Tarif | B7: G-Standard | D7: Einheit
A8: Erdgas | C8: =CONCATENATE(B7,A8) -> G-StandardErdgas | D8: Rp./kWh | E8: 6.50
A9: Grundpreis | C9: =CONCATENATE(B7,A9) -> G-StandardGrundpreis | D9: CHF/Zähler/Mt | E9: 12.00
A11: =A7 -> Tarif | B11: G-Extra | D11: =D7 -> Einheit
A12: Erdgas | C12: =CONCATENATE(B11,A12) -> G-ExtraErdgas | D12: Rp./kWh | E12: 5.98
A13: Grundpreis | C13: =CONCATENATE(B11,A13) -> G-ExtraGrundpreis | D13: CHF/Zähler/Mt | E13: 39.00
A15: Tarifunabhängige Komponenten | D15: =D7 -> Einheit | E15: =E1 -> 2024
A16: Erdgas Sonderausschüttung1 | C16: =CONCATENATE(A16) -> Erdgas Sonderausschüttung1 | D16: Rp./kWh | E16: -2.81
A17: Abgabe an das Gemeinwesen | C17: =CONCATENATE(A17) -> Abgabe an das Gemeinwesen | D17: CHF/Zähler/Mt | E17: 2.90
A20: CO2-Abgabe Biogas 0 % | C20: =CONCATENATE(A20) -> CO2-Abgabe Biogas 0 % | D20: Rp./kWh | E20: 2.156
A21: CO2-Abgabe Biogas 35 % - Standardmix | C21: =CONCATENATE(A21) -> CO2-Abgabe Biogas 35 % - Standardmix | D21: Rp./kWh | E21: =E20 -> 2.156
A22: CO2-Abgabe Schweizer Biogas 80 % | C22: =CONCATENATE(A22) -> CO2-Abgabe Schweizer Biogas 80 % | D22: Rp./kWh | E22: 0.431
A23: CO2-Abgabe Schweizer Biogas 100 % | C23: =CONCATENATE(A23) -> CO2-Abgabe Schweizer Biogas 100 % | D23: Rp./kWh | E23: 0.000
A25: Biogas Europa
A26: Biogas 35 % - Standardmix | C26: =A26 -> Biogas 35 % - Standardmix | D26: Rp./kWh | E26: 1.40
A27: Biogas 0 % | C27: =A27 -> Biogas 0 % | D27: Rp./kWh | E27: 0.00
A29: Schweizer Biogas
A30: Schweizer Biogas 80 % | C30: =A30 -> Schweizer Biogas 80 % | D30: Rp./kWh | E30: 9.24
A31: Schweizer Biogas 100 % | C31: =A31 -> Schweizer Biogas 100 % | D31: Rp./kWh | E31: 11.56

Sheet Drop Down (hidden)
A1: Drop Down Menu
A3: Periode | B3: Tarifart | C3: Biogasanteil
A4: Monat | B4: G-Standard | C4: Biogas 35 % - Standardmix
A5: Quartal | B5: G-Extra | C5: Biogas 0 %
A6: Jahr | C6: Schweizer Biogas 80 %
C7: Schweizer Biogas 100 %

Sheet Tabelle3

Sheet Tabelle4
